{"text_format":"3","workbook":"xlsx","n_sheets":3,"sheets":["Báo cáo ngân sách hàng tháng","Chi phí hàng tháng","Dữ liệu bổ sung"],"not_rendered":{"charts":1,"external_links":1,"defined_names":4,"pivot_tables":2},"read":"whole","date_system":"1900"}

{"sheet":"Báo cáo ngân sách hàng tháng","index":0,"n_rows":34,"n_cols":14,"rows_kept":34,"merged":[[7,1,10,1],[7,5,10,5],[7,6,10,6],[12,1,16,1],[12,5,16,5],[12,6,16,6]]}
[null,"Tổng quan về ngân sách",{"$nulls":7},"Tóm tắt ngân sách"]
[null,"Số dư"]
[null,"Số dư theo kế hoạch","(Số dư theo kế hoạch trừ chi phí)",{"$nulls":3},{"$f":"D17-SUM(Chi_tiết_ngân_sách[Chi phí theo kế hoạch])","v":{"v":1585,"d":"1,585 ₫"}}]
[null,"Số dư thực tế ","(Số dư thực tế trừ chi phí)",{"$nulls":3},{"$f":"D11-SUM(Chi_tiết_ngân_sách[Chi phí thực tế])","v":{"v":1740,"d":"1,740 ₫"}}]
[null,"Chênh lệch","(Số dư thực tế trừ số dư theo kế hoạch)",{"$nulls":3},{"$f":"G4-G3","v":{"v":155,"d":"155 ₫"}}]
[]
[null,"Thu nhập",{"$nulls":3},"Chi phí",{"$nulls":3},"Bấm chuột phải vào PivotTable dưới đây, rồi bấm vào Làm tươi để cập nhật"]
[null,"THỰC TẾ","Thu nhập 1",{"v":5800,"d":"5,800 ₫"},null,"THỰC TẾ",{"$f":"SUM(Chi_tiết_ngân_sách[Chi phí thực tế])","v":{"v":7860,"d":"7,860 ₫"}}]
[null,null,"Thu nhập 2",{"v":2300,"d":"2,300 ₫"},{"$nulls":6},"Danh mục","Chi phí theo kế hoạch ","Chi phí thực tế ","Chênh lệch "]
[null,null,"Thu nhập thêm",{"v":1500,"d":"1,500 ₫"},{"$nulls":6},"Con cái",{"v":140,"d":"140 ₫"},{"v":140,"d":"140 ₫"},{"v":0,"d":"0 ₫"}]
[null,null,"Tổng thu nhập",{"$f":"SUM(D8:D10)","v":{"v":9600,"d":"9,600 ₫"}}]
[{"$nulls":10},"Giải trí",{"v":400,"d":"400 ₫"},{"v":358,"d":"358 ₫"},{"v":42,"d":"42 ₫"}]
[null,"THEO KẾ HOẠCH",{"$nulls":3},"THEO KẾ HOẠCH",{"$f":"SUM(Chi_tiết_ngân_sách[Chi phí theo kế hoạch])","v":{"v":7915,"d":"7,915 ₫"}}]
[null,null,"Thu nhập 1",{"v":6000,"d":"6,000 ₫"},{"$nulls":6},"Đồ ăn",{"v":1100,"d":"1,100 ₫"},{"v":1320,"d":"1,320 ₫"},{"v":-220,"d":"-220 ₫"}]
[null,null,"Thu nhập 2",{"v":1000,"d":"1,000 ₫"}]
[null,null,"Thu nhập thêm",{"v":2500,"d":"2,500 ₫"},{"$nulls":6},"Quà tặng và khoản từ thiện",{"v":100,"d":"100 ₫"},{"v":125,"d":"125 ₫"},{"v":-25,"d":"-25 ₫"}]
[null,null,"Tổng thu nhập",{"$f":"SUM(D14:D16)","v":{"v":9500,"d":"9,500 ₫"}}]
[{"$nulls":10},"Nhà ở",{"v":2830,"d":"2,830 ₫"},{"v":2702,"d":"2,702 ₫"},{"v":128,"d":"128 ₫"}]
[]
[{"$nulls":10},"Bảo hiểm",{"v":900,"d":"900 ₫"},{"v":900,"d":"900 ₫"},{"v":0,"d":"0 ₫"}]
[]
[{"$nulls":10},"Khoản vay",{"v":200,"d":"200 ₫"},{"v":200,"d":"200 ₫"},{"v":0,"d":"0 ₫"}]
[]
[{"$nulls":10},"Chăm sóc cá nhân",{"v":150,"d":"150 ₫"},{"v":140,"d":"140 ₫"},{"v":10,"d":"10 ₫"}]
[]
[{"$nulls":10},"Vật nuôi",{"v":170,"d":"170 ₫"},{"v":100,"d":"100 ₫"},{"v":70,"d":"70 ₫"}]
[]
[{"$nulls":10},"Tiết kiệm hoặc đầu tư",{"v":200,"d":"200 ₫"},{"v":200,"d":"200 ₫"},{"v":0,"d":"0 ₫"}]
[]
[{"$nulls":10},"Thuế",{"v":300,"d":"300 ₫"},{"v":300,"d":"300 ₫"},{"v":0,"d":"0 ₫"}]
[]
[{"$nulls":10},"Đi lại",{"v":1425,"d":"1,425 ₫"},{"v":1375,"d":"1,375 ₫"},{"v":50,"d":"50 ₫"}]
[]
[{"$nulls":10},"Tổng Cuối",{"v":7915,"d":"7,915 ₫"},{"v":7860,"d":"7,860 ₫"},{"v":55,"d":"55 ₫"}]

{"sheet":"Chi phí hàng tháng","index":1,"n_rows":62,"n_cols":7,"rows_kept":62}
[null,"Chi phí hàng tháng"]
[null,"Mô tả","Danh mục","Chi phí theo kế hoạch","Chi phí thực tế","Chênh lệch","Tổng quan về chi phí thực tế"]
[null,"Hoạt động ngoại khóa","Con cái",{"v":40,"d":"40 ₫"},{"v":40,"d":"40 ₫"},{"$f":"Chi_tiết_ngân_sách[[#This Row],[Chi phí theo kế hoạch]]-Chi_tiết_ngân_sách[[#This Row],[Chi phí thực tế]]","v":{"v":0,"d":"0 ₫"}},{"$f":"Chi_tiết_ngân_sách[[#This Row],[Chi phí thực tế]]","v":{"v":40,"d":"40 ₫"}}]
[null,"Y tế","Con cái",null,null,{"$f":"Chi_tiết_ngân_sách[[#This Row],[Chi phí theo kế hoạch]]-Chi_tiết_ngân_sách[[#This Row],[Chi phí thực tế]]","v":{"v":0,"d":"0 ₫"}},{"$f":"Chi_tiết_ngân_sách[[#This Row],[Chi phí thực tế]]","v":{"v":0,"d":"0 ₫"}}]
[null,"Dụng cụ học tập","Con cái",null,null,{"$f":"Chi_tiết_ngân_sách[[#This Row],[Chi phí theo kế hoạch]]-Chi_tiết_ngân_sách[[#This Row],[Chi phí thực tế]]","v":{"v":0,"d":"0 ₫"}},{"$f":"Chi_tiết_ngân_sách[[#This Row],[Chi phí thực tế]]","v":{"v":0,"d":"0 ₫"}}]
[null,"Học phí","Con cái",{"v":100,"d":"100 ₫"},{"v":100,"d":"100 ₫"},{"$f":"Chi_tiết_ngân_sách[[#This Row],[Chi phí theo kế hoạch]]-Chi_tiết_ngân_sách[[#This Row],[Chi phí thực tế]]","v":{"v":0,"d":"0 ₫"}},{"$f":"Chi_tiết_ngân_sách[[#This Row],[Chi phí thực tế]]","v":{"v":100,"d":"100 ₫"}}]
[null,"Buổi hòa nhạc","Giải trí",{"v":50,"d":"50 ₫"},{"v":40,"d":"40 ₫"},{"$f":"Chi_tiết_ngân_sách[[#This Row],[Chi phí theo kế hoạch]]-Chi_tiết_ngân_sách[[#This Row],[Chi phí thực tế]]","v":{"v":10,"d":"10 ₫"}},{"$f":"Chi_tiết_ngân_sách[[#This Row],[Chi phí thực tế]]","v":{"v":40,"d":"40 ₫"}}]
[null,"Nhà hát","Giải trí",{"v":200,"d":"200 ₫"},{"v":150,"d":"150 ₫"},{"$f":"Chi_tiết_ngân_sách[[#This Row],[Chi phí theo kế hoạch]]-Chi_tiết_ngân_sách[[#This Row],[Chi phí thực tế]]","v":{"v":50,"d":"50 ₫"}},{"$f":"Chi_tiết_ngân_sách[[#This Row],[Chi phí thực tế]]","v":{"v":150,"d":"150 ₫"}}]
[null,"Phim","Giải trí",{"v":50,"d":"50 ₫"},{"v":28,"d":"28 ₫"},{"$f":"Chi_tiết_ngân_sách[[#This Row],[Chi phí theo kế hoạch]]-Chi_tiết_ngân_sách[[#This Row],[Chi phí thực tế]]","v":{"v":22,"d":"22 ₫"}},{"$f":"Chi_tiết_ngân_sách[[#This Row],[Chi phí thực tế]]","v":{"v":28,"d":"28 ₫"}}]
[null,"Nhạc (CD, tải xuống, v.v.)","Giải trí",{"v":50,"d":"50 ₫"},{"v":30,"d":"30 ₫"},{"$f":"Chi_tiết_ngân_sách[[#This Row],[Chi phí theo kế hoạch]]-Chi_tiết_ngân_sách[[#This Row],[Chi phí thực tế]]","v":{"v":20,"d":"20 ₫"}},{"$f":"Chi_tiết_ngân_sách[[#This Row],[Chi phí thực tế]]","v":{"v":30,"d":"30 ₫"}}]
[null,"Sự kiện thể thao","Giải trí",{"v":0,"d":"0 ₫"},{"v":40,"d":"40 ₫"},{"$f":"Chi_tiết_ngân_sách[[#This Row],[Chi phí theo kế hoạch]]-Chi_tiết_ngân_sách[[#This Row],[Chi phí thực tế]]","v":{"v":-40,"d":"-40 ₫"}},{"$f":"Chi_tiết_ngân_sách[[#This Row],[Chi phí thực tế]]","v":{"v":40,"d":"40 ₫"}}]
[null,"Video/DVD (Mua)","Giải trí",{"v":20,"d":"20 ₫"},{"v":50,"d":"50 ₫"},{"$f":"Chi_tiết_ngân_sách[[#This Row],[Chi phí theo kế hoạch]]-Chi_tiết_ngân_sách[[#This Row],[Chi phí thực tế]]","v":{"v":-30,"d":"-30 ₫"}},{"$f":"Chi_tiết_ngân_sách[[#This Row],[Chi phí thực tế]]","v":{"v":50,"d":"50 ₫"}}]
[null,"Video/DVD (Thuê)","Giải trí",{"v":30,"d":"30 ₫"},{"v":20,"d":"20 ₫"},{"$f":"Chi_tiết_ngân_sách[[#This Row],[Chi phí theo kế hoạch]]-Chi_tiết_ngân_sách[[#This Row],[Chi phí thực tế]]","v":{"v":10,"d":"10 ₫"}},{"$f":"Chi_tiết_ngân_sách[[#This Row],[Chi phí thực tế]]","v":{"v":20,"d":"20 ₫"}}]
[null,"Ăn ngoài","Đồ ăn",{"v":1000,"d":"1,000 ₫"},{"v":1200,"d":"1,200 ₫"},{"$f":"Chi_tiết_ngân_sách[[#This Row],[Chi phí theo kế hoạch]]-Chi_tiết_ngân_sách[[#This Row],[Chi phí thực tế]]","v":{"v":-200,"d":"-200 ₫"}},{"$f":"Chi_tiết_ngân_sách[[#This Row],[Chi phí thực tế]]","v":{"v":1200,"d":"1,200 ₫"}}]
[null,"Tạp phẩm","Đồ ăn",{"v":100,"d":"100 ₫"},{"v":120,"d":"120 ₫"},{"$f":"Chi_tiết_ngân_sách[[#This Row],[Chi phí theo kế hoạch]]-Chi_tiết_ngân_sách[[#This Row],[Chi phí thực tế]]","v":{"v":-20,"d":"-20 ₫"}},{"$f":"Chi_tiết_ngân_sách[[#This Row],[Chi phí thực tế]]","v":{"v":120,"d":"120 ₫"}}]
[null,"Khoản từ thiện 1","Quà tặng và khoản từ thiện",{"v":75,"d":"75 ₫"},{"v":100,"d":"100 ₫"},{"$f":"Chi_tiết_ngân_sách[[#This Row],[Chi phí theo kế hoạch]]-Chi_tiết_ngân_sách[[#This Row],[Chi phí thực tế]]","v":{"v":-25,"d":"-25 ₫"}},{"$f":"Chi_tiết_ngân_sách[[#This Row],[Chi phí thực tế]]","v":{"v":100,"d":"100 ₫"}}]
[null,"Khoản từ thiện 2","Quà tặng và khoản từ thiện",{"v":25,"d":"25 ₫"},{"v":25,"d":"25 ₫"},{"$f":"Chi_tiết_ngân_sách[[#This Row],[Chi phí theo kế hoạch]]-Chi_tiết_ngân_sách[[#This Row],[Chi phí thực tế]]","v":{"v":0,"d":"0 ₫"}},{"$f":"Chi_tiết_ngân_sách[[#This Row],[Chi phí thực tế]]","v":{"v":25,"d":"25 ₫"}}]
[null,"Quà tặng 1","Quà tặng và khoản từ thiện",null,null,{"$f":"Chi_tiết_ngân_sách[[#This Row],[Chi phí theo kế hoạch]]-Chi_tiết_ngân_sách[[#This Row],[Chi phí thực tế]]","v":{"v":0,"d":"0 ₫"}},{"$f":"Chi_tiết_ngân_sách[[#This Row],[Chi phí thực tế]]","v":{"v":0,"d":"0 ₫"}}]
[null,"Quà tặng 2","Quà tặng và khoản từ thiện",null,null,{"$f":"Chi_tiết_ngân_sách[[#This Row],[Chi phí theo kế hoạch]]-Chi_tiết_ngân_sách[[#This Row],[Chi phí thực tế]]","v":{"v":0,"d":"0 ₫"}},{"$f":"Chi_tiết_ngân_sách[[#This Row],[Chi phí thực tế]]","v":{"v":0,"d":"0 ₫"}}]
[null,"Cáp/Vệ tinh","Nhà ở",{"v":100,"d":"100 ₫"},{"v":100,"d":"100 ₫"},{"$f":"Chi_tiết_ngân_sách[[#This Row],[Chi phí theo kế hoạch]]-Chi_tiết_ngân_sách[[#This Row],[Chi phí thực tế]]","v":{"v":0,"d":"0 ₫"}},{"$f":"Chi_tiết_ngân_sách[[#This Row],[Chi phí thực tế]]","v":{"v":100,"d":"100 ₫"}}]
[null,"Điện","Nhà ở",{"v":45,"d":"45 ₫"},{"v":50,"d":"50 ₫"},{"$f":"Chi_tiết_ngân_sách[[#This Row],[Chi phí theo kế hoạch]]-Chi_tiết_ngân_sách[[#This Row],[Chi phí thực tế]]","v":{"v":-5,"d":"-5 ₫"}},{"$f":"Chi_tiết_ngân_sách[[#This Row],[Chi phí thực tế]]","v":{"v":50,"d":"50 ₫"}}]
[null,"Khí đốt","Nhà ở",{"v":300,"d":"300 ₫"},{"v":400,"d":"400 ₫"},{"$f":"Chi_tiết_ngân_sách[[#This Row],[Chi phí theo kế hoạch]]-Chi_tiết_ngân_sách[[#This Row],[Chi phí thực tế]]","v":{"v":-100,"d":"-100 ₫"}},{"$f":"Chi_tiết_ngân_sách[[#This Row],[Chi phí thực tế]]","v":{"v":400,"d":"400 ₫"}}]
[null,"Dịch vụ dọn dẹp nhà cửa","Nhà ở",{"v":200,"d":"200 ₫"},null,{"$f":"Chi_tiết_ngân_sách[[#This Row],[Chi phí theo kế hoạch]]-Chi_tiết_ngân_sách[[#This Row],[Chi phí thực tế]]","v":{"v":200,"d":"200 ₫"}},{"$f":"Chi_tiết_ngân_sách[[#This Row],[Chi phí thực tế]]","v":{"v":0,"d":"0 ₫"}}]
[null,"Bảo trì","Nhà ở",{"v":200,"d":"200 ₫"},{"v":150,"d":"150 ₫"},{"$f":"Chi_tiết_ngân_sách[[#This Row],[Chi phí theo kế hoạch]]-Chi_tiết_ngân_sách[[#This Row],[Chi phí thực tế]]","v":{"v":50,"d":"50 ₫"}},{"$f":"Chi_tiết_ngân_sách[[#This Row],[Chi phí thực tế]]","v":{"v":150,"d":"150 ₫"}}]
[null,"Tiền thế chấp hoặc tiền thuê","Nhà ở",{"v":1700,"d":"1,700 ₫"},{"v":1700,"d":"1,700 ₫"},{"$f":"Chi_tiết_ngân_sách[[#This Row],[Chi phí theo kế hoạch]]-Chi_tiết_ngân_sách[[#This Row],[Chi phí thực tế]]","v":{"v":0,"d":"0 ₫"}},{"$f":"Chi_tiết_ngân_sách[[#This Row],[Chi phí thực tế]]","v":{"v":1700,"d":"1,700 ₫"}}]
[null,"Khí đốt tự nhiên/dầu","Nhà ở",null,null,{"$f":"Chi_tiết_ngân_sách[[#This Row],[Chi phí theo kế hoạch]]-Chi_tiết_ngân_sách[[#This Row],[Chi phí thực tế]]","v":{"v":0,"d":"0 ₫"}},{"$f":"Chi_tiết_ngân_sách[[#This Row],[Chi phí thực tế]]","v":{"v":0,"d":"0 ₫"}}]
[null,"Dịch vụ trực tuyến/Internet","Nhà ở",{"v":100,"d":"100 ₫"},{"v":100,"d":"100 ₫"},{"$f":"Chi_tiết_ngân_sách[[#This Row],[Chi phí theo kế hoạch]]-Chi_tiết_ngân_sách[[#This Row],[Chi phí thực tế]]","v":{"v":0,"d":"0 ₫"}},{"$f":"Chi_tiết_ngân_sách[[#This Row],[Chi phí thực tế]]","v":{"v":100,"d":"100 ₫"}}]
[null,"Điện thoại (Di động)","Nhà ở",{"v":60,"d":"60 ₫"},{"v":60,"d":"60 ₫"},{"$f":"Chi_tiết_ngân_sách[[#This Row],[Chi phí theo kế hoạch]]-Chi_tiết_ngân_sách[[#This Row],[Chi phí thực tế]]","v":{"v":0,"d":"0 ₫"}},{"$f":"Chi_tiết_ngân_sách[[#This Row],[Chi phí thực tế]]","v":{"v":60,"d":"60 ₫"}}]
[null,"Điện thoại (Nhà)","Nhà ở",{"v":35,"d":"35 ₫"},{"v":39,"d":"39 ₫"},{"$f":"Chi_tiết_ngân_sách[[#This Row],[Chi phí theo kế hoạch]]-Chi_tiết_ngân_sách[[#This Row],[Chi phí thực tế]]","v":{"v":-4,"d":"-4 ₫"}},{"$f":"Chi_tiết_ngân_sách[[#This Row],[Chi phí thực tế]]","v":{"v":39,"d":"39 ₫"}}]
[null,"Nhu yếu phẩm","Nhà ở",{"v":40,"d":"40 ₫"},{"v":55,"d":"55 ₫"},{"$f":"Chi_tiết_ngân_sách[[#This Row],[Chi phí theo kế hoạch]]-Chi_tiết_ngân_sách[[#This Row],[Chi phí thực tế]]","v":{"v":-15,"d":"-15 ₫"}},{"$f":"Chi_tiết_ngân_sách[[#This Row],[Chi phí thực tế]]","v":{"v":55,"d":"55 ₫"}}]
[null,"Loại bỏ rác thải và tái chế","Nhà ở",{"v":25,"d":"25 ₫"},{"v":22,"d":"22 ₫"},{"$f":"Chi_tiết_ngân_sách[[#This Row],[Chi phí theo kế hoạch]]-Chi_tiết_ngân_sách[[#This Row],[Chi phí thực tế]]","v":{"v":3,"d":"3 ₫"}},{"$f":"Chi_tiết_ngân_sách[[#This Row],[Chi phí thực tế]]","v":{"v":22,"d":"22 ₫"}}]
[null,"Nước và nước thải","Nhà ở",{"v":25,"d":"25 ₫"},{"v":26,"d":"26 ₫"},{"$f":"Chi_tiết_ngân_sách[[#This Row],[Chi phí theo kế hoạch]]-Chi_tiết_ngân_sách[[#This Row],[Chi phí thực tế]]","v":{"v":-1,"d":"-1 ₫"}},{"$f":"Chi_tiết_ngân_sách[[#This Row],[Chi phí thực tế]]","v":{"v":26,"d":"26 ₫"}}]
[null,"Sức khỏe","Bảo hiểm",{"v":400,"d":"400 ₫"},{"v":400,"d":"400 ₫"},{"$f":"Chi_tiết_ngân_sách[[#This Row],[Chi phí theo kế hoạch]]-Chi_tiết_ngân_sách[[#This Row],[Chi phí thực tế]]","v":{"v":0,"d":"0 ₫"}},{"$f":"Chi_tiết_ngân_sách[[#This Row],[Chi phí thực tế]]","v":{"v":400,"d":"400 ₫"}}]
[null,"Trang chủ","Bảo hiểm",{"v":400,"d":"400 ₫"},{"v":400,"d":"400 ₫"},{"$f":"Chi_tiết_ngân_sách[[#This Row],[Chi phí theo kế hoạch]]-Chi_tiết_ngân_sách[[#This Row],[Chi phí thực tế]]","v":{"v":0,"d":"0 ₫"}},{"$f":"Chi_tiết_ngân_sách[[#This Row],[Chi phí thực tế]]","v":{"v":400,"d":"400 ₫"}}]
[null,"Đời sống","Bảo hiểm",{"v":100,"d":"100 ₫"},{"v":100,"d":"100 ₫"},{"$f":"Chi_tiết_ngân_sách[[#This Row],[Chi phí theo kế hoạch]]-Chi_tiết_ngân_sách[[#This Row],[Chi phí thực tế]]","v":{"v":0,"d":"0 ₫"}},{"$f":"Chi_tiết_ngân_sách[[#This Row],[Chi phí thực tế]]","v":{"v":100,"d":"100 ₫"}}]
[null,"Thẻ tín dụng 1","Khoản vay",{"v":200,"d":"200 ₫"},{"v":200,"d":"200 ₫"},{"$f":"Chi_tiết_ngân_sách[[#This Row],[Chi phí theo kế hoạch]]-Chi_tiết_ngân_sách[[#This Row],[Chi phí thực tế]]","v":{"v":0,"d":"0 ₫"}},{"$f":"Chi_tiết_ngân_sách[[#This Row],[Chi phí thực tế]]","v":{"v":200,"d":"200 ₫"}}]
[null,"Thẻ tín dụng 2","Khoản vay",null,null,{"$f":"Chi_tiết_ngân_sách[[#This Row],[Chi phí theo kế hoạch]]-Chi_tiết_ngân_sách[[#This Row],[Chi phí thực tế]]","v":{"v":0,"d":"0 ₫"}},{"$f":"Chi_tiết_ngân_sách[[#This Row],[Chi phí thực tế]]","v":{"v":0,"d":"0 ₫"}}]
[null,"Thẻ tín dụng 3","Khoản vay",null,null,{"$f":"Chi_tiết_ngân_sách[[#This Row],[Chi phí theo kế hoạch]]-Chi_tiết_ngân_sách[[#This Row],[Chi phí thực tế]]","v":{"v":0,"d":"0 ₫"}},{"$f":"Chi_tiết_ngân_sách[[#This Row],[Chi phí thực tế]]","v":{"v":0,"d":"0 ₫"}}]
[null,"Cá nhân","Khoản vay",null,null,{"$f":"Chi_tiết_ngân_sách[[#This Row],[Chi phí theo kế hoạch]]-Chi_tiết_ngân_sách[[#This Row],[Chi phí thực tế]]","v":{"v":0,"d":"0 ₫"}},{"$f":"Chi_tiết_ngân_sách[[#This Row],[Chi phí thực tế]]","v":{"v":0,"d":"0 ₫"}}]
[null,"Học viên","Khoản vay",null,null,{"$f":"Chi_tiết_ngân_sách[[#This Row],[Chi phí theo kế hoạch]]-Chi_tiết_ngân_sách[[#This Row],[Chi phí thực tế]]","v":{"v":0,"d":"0 ₫"}},{"$f":"Chi_tiết_ngân_sách[[#This Row],[Chi phí thực tế]]","v":{"v":0,"d":"0 ₫"}}]
[null,"Trang phục","Chăm sóc cá nhân",{"v":150,"d":"150 ₫"},{"v":140,"d":"140 ₫"},{"$f":"Chi_tiết_ngân_sách[[#This Row],[Chi phí theo kế hoạch]]-Chi_tiết_ngân_sách[[#This Row],[Chi phí thực tế]]","v":{"v":10,"d":"10 ₫"}},{"$f":"Chi_tiết_ngân_sách[[#This Row],[Chi phí thực tế]]","v":{"v":140,"d":"140 ₫"}}]
[null,"Giặt khô","Chăm sóc cá nhân",null,null,{"$f":"Chi_tiết_ngân_sách[[#This Row],[Chi phí theo kế hoạch]]-Chi_tiết_ngân_sách[[#This Row],[Chi phí thực tế]]","v":{"v":0,"d":"0 ₫"}},{"$f":"Chi_tiết_ngân_sách[[#This Row],[Chi phí thực tế]]","v":{"v":0,"d":"0 ₫"}}]
[null,"Tóc/Móng","Chăm sóc cá nhân",null,null,{"$f":"Chi_tiết_ngân_sách[[#This Row],[Chi phí theo kế hoạch]]-Chi_tiết_ngân_sách[[#This Row],[Chi phí thực tế]]","v":{"v":0,"d":"0 ₫"}},{"$f":"Chi_tiết_ngân_sách[[#This Row],[Chi phí thực tế]]","v":{"v":0,"d":"0 ₫"}}]
[null,"Phòng tập","Chăm sóc cá nhân",null,null,{"$f":"Chi_tiết_ngân_sách[[#This Row],[Chi phí theo kế hoạch]]-Chi_tiết_ngân_sách[[#This Row],[Chi phí thực tế]]","v":{"v":0,"d":"0 ₫"}},{"$f":"Chi_tiết_ngân_sách[[#This Row],[Chi phí thực tế]]","v":{"v":0,"d":"0 ₫"}}]
[null,"Y tế","Chăm sóc cá nhân",null,null,{"$f":"Chi_tiết_ngân_sách[[#This Row],[Chi phí theo kế hoạch]]-Chi_tiết_ngân_sách[[#This Row],[Chi phí thực tế]]","v":{"v":0,"d":"0 ₫"}},{"$f":"Chi_tiết_ngân_sách[[#This Row],[Chi phí thực tế]]","v":{"v":0,"d":"0 ₫"}}]
[null,"Đồ ăn","Vật nuôi",{"v":150,"d":"150 ₫"},{"v":75,"d":"75 ₫"},{"$f":"Chi_tiết_ngân_sách[[#This Row],[Chi phí theo kế hoạch]]-Chi_tiết_ngân_sách[[#This Row],[Chi phí thực tế]]","v":{"v":75,"d":"75 ₫"}},{"$f":"Chi_tiết_ngân_sách[[#This Row],[Chi phí thực tế]]","v":{"v":75,"d":"75 ₫"}}]
[null,"Chăm sóc vật nuôi","Vật nuôi",{"v":20,"d":"20 ₫"},{"v":25,"d":"25 ₫"},{"$f":"Chi_tiết_ngân_sách[[#This Row],[Chi phí theo kế hoạch]]-Chi_tiết_ngân_sách[[#This Row],[Chi phí thực tế]]","v":{"v":-5,"d":"-5 ₫"}},{"$f":"Chi_tiết_ngân_sách[[#This Row],[Chi phí thực tế]]","v":{"v":25,"d":"25 ₫"}}]
[null,"Y tế","Vật nuôi",null,null,{"$f":"Chi_tiết_ngân_sách[[#This Row],[Chi phí theo kế hoạch]]-Chi_tiết_ngân_sách[[#This Row],[Chi phí thực tế]]","v":{"v":0,"d":"0 ₫"}},{"$f":"Chi_tiết_ngân_sách[[#This Row],[Chi phí thực tế]]","v":{"v":0,"d":"0 ₫"}}]
[null,"Đồ chơi","Vật nuôi",null,null,{"$f":"Chi_tiết_ngân_sách[[#This Row],[Chi phí theo kế hoạch]]-Chi_tiết_ngân_sách[[#This Row],[Chi phí thực tế]]","v":{"v":0,"d":"0 ₫"}},{"$f":"Chi_tiết_ngân_sách[[#This Row],[Chi phí thực tế]]","v":{"v":0,"d":"0 ₫"}}]
[null,"Tài khoản đầu tư","Tiết kiệm hoặc đầu tư",{"v":200,"d":"200 ₫"},{"v":200,"d":"200 ₫"},{"$f":"Chi_tiết_ngân_sách[[#This Row],[Chi phí theo kế hoạch]]-Chi_tiết_ngân_sách[[#This Row],[Chi phí thực tế]]","v":{"v":0,"d":"0 ₫"}},{"$f":"Chi_tiết_ngân_sách[[#This Row],[Chi phí thực tế]]","v":{"v":200,"d":"200 ₫"}}]
[null,"Tài khoản hưu trí","Tiết kiệm hoặc đầu tư",null,null,{"$f":"Chi_tiết_ngân_sách[[#This Row],[Chi phí theo kế hoạch]]-Chi_tiết_ngân_sách[[#This Row],[Chi phí thực tế]]","v":{"v":0,"d":"0 ₫"}},{"$f":"Chi_tiết_ngân_sách[[#This Row],[Chi phí thực tế]]","v":{"v":0,"d":"0 ₫"}}]
[null,"Liên bang","Thuế",{"v":300,"d":"300 ₫"},{"v":300,"d":"300 ₫"},{"$f":"Chi_tiết_ngân_sách[[#This Row],[Chi phí theo kế hoạch]]-Chi_tiết_ngân_sách[[#This Row],[Chi phí thực tế]]","v":{"v":0,"d":"0 ₫"}},{"$f":"Chi_tiết_ngân_sách[[#This Row],[Chi phí thực tế]]","v":{"v":300,"d":"300 ₫"}}]
[null,"Địa phương","Thuế",null,null,{"$f":"Chi_tiết_ngân_sách[[#This Row],[Chi phí theo kế hoạch]]-Chi_tiết_ngân_sách[[#This Row],[Chi phí thực tế]]","v":{"v":0,"d":"0 ₫"}},{"$f":"Chi_tiết_ngân_sách[[#This Row],[Chi phí thực tế]]","v":{"v":0,"d":"0 ₫"}}]
[null,"Tiểu bang","Thuế",null,null,{"$f":"Chi_tiết_ngân_sách[[#This Row],[Chi phí theo kế hoạch]]-Chi_tiết_ngân_sách[[#This Row],[Chi phí thực tế]]","v":{"v":0,"d":"0 ₫"}},{"$f":"Chi_tiết_ngân_sách[[#This Row],[Chi phí thực tế]]","v":{"v":0,"d":"0 ₫"}}]
[null,"Tiền đi xe buýt/taxi","Đi lại",{"v":100,"d":"100 ₫"},{"v":150,"d":"150 ₫"},{"$f":"Chi_tiết_ngân_sách[[#This Row],[Chi phí theo kế hoạch]]-Chi_tiết_ngân_sách[[#This Row],[Chi phí thực tế]]","v":{"v":-50,"d":"-50 ₫"}},{"$f":"Chi_tiết_ngân_sách[[#This Row],[Chi phí thực tế]]","v":{"v":150,"d":"150 ₫"}}]
[null,"Nhiên liệu","Đi lại",{"v":450,"d":"450 ₫"},{"v":400,"d":"400 ₫"},{"$f":"Chi_tiết_ngân_sách[[#This Row],[Chi phí theo kế hoạch]]-Chi_tiết_ngân_sách[[#This Row],[Chi phí thực tế]]","v":{"v":50,"d":"50 ₫"}},{"$f":"Chi_tiết_ngân_sách[[#This Row],[Chi phí thực tế]]","v":{"v":400,"d":"400 ₫"}}]
[null,"Bảo hiểm","Đi lại",{"v":300,"d":"300 ₫"},{"v":300,"d":"300 ₫"},{"$f":"Chi_tiết_ngân_sách[[#This Row],[Chi phí theo kế hoạch]]-Chi_tiết_ngân_sách[[#This Row],[Chi phí thực tế]]","v":{"v":0,"d":"0 ₫"}},{"$f":"Chi_tiết_ngân_sách[[#This Row],[Chi phí thực tế]]","v":{"v":300,"d":"300 ₫"}}]
[null,"Cấp phép ","Đi lại",{"v":25,"d":"25 ₫"},{"v":25,"d":"25 ₫"},{"$f":"Chi_tiết_ngân_sách[[#This Row],[Chi phí theo kế hoạch]]-Chi_tiết_ngân_sách[[#This Row],[Chi phí thực tế]]","v":{"v":0,"d":"0 ₫"}},{"$f":"Chi_tiết_ngân_sách[[#This Row],[Chi phí thực tế]]","v":{"v":25,"d":"25 ₫"}}]
[null,"Bảo trì","Đi lại",{"v":100,"d":"100 ₫"},{"v":50,"d":"50 ₫"},{"$f":"Chi_tiết_ngân_sách[[#This Row],[Chi phí theo kế hoạch]]-Chi_tiết_ngân_sách[[#This Row],[Chi phí thực tế]]","v":{"v":50,"d":"50 ₫"}},{"$f":"Chi_tiết_ngân_sách[[#This Row],[Chi phí thực tế]]","v":{"v":50,"d":"50 ₫"}}]
[null,"Phí đỗ xe","Đi lại",null,null,{"$f":"Chi_tiết_ngân_sách[[#This Row],[Chi phí theo kế hoạch]]-Chi_tiết_ngân_sách[[#This Row],[Chi phí thực tế]]","v":{"v":0,"d":"0 ₫"}},{"$f":"Chi_tiết_ngân_sách[[#This Row],[Chi phí thực tế]]","v":{"v":0,"d":"0 ₫"}}]
[null,"Khoản thanh toán cho phương tiện đi lại","Đi lại",{"v":450,"d":"450 ₫"},{"v":450,"d":"450 ₫"},{"$f":"Chi_tiết_ngân_sách[[#This Row],[Chi phí theo kế hoạch]]-Chi_tiết_ngân_sách[[#This Row],[Chi phí thực tế]]","v":{"v":0,"d":"0 ₫"}},{"$f":"Chi_tiết_ngân_sách[[#This Row],[Chi phí thực tế]]","v":{"v":450,"d":"450 ₫"}}]
[null,"Tổng",null,{"$f":"SUBTOTAL(109,Chi_tiết_ngân_sách[Chi phí theo kế hoạch])","v":{"v":7915,"d":"7,915 ₫"}},{"$f":"SUBTOTAL(109,Chi_tiết_ngân_sách[Chi phí thực tế])","v":{"v":7860,"d":"7,860 ₫"}},{"$f":"SUBTOTAL(109,Chi_tiết_ngân_sách[Chênh lệch])","v":{"v":55,"d":"55 ₫"}}]

{"sheet":"Dữ liệu bổ sung","index":2,"n_rows":15,"n_cols":5,"rows_kept":15}
[null,"PivotTable cho biểu đồ Tổng quan về ngân sách",null,null,"Danh sách tra cứu cho danh mục Chi tiết về ngân sách"]
[null,"Danh mục","Chi phí",null,"Tra cứu danh mục ngân sách"]
[null,"Con cái",140,null,"Bảo hiểm"]
[null,"Giải trí",358,null,"Con cái"]
[null,"Đồ ăn",1320,null,"Chăm sóc cá nhân"]
[null,"Quà tặng và khoản từ thiện",125,null,"Đi lại"]
[null,"Nhà ở",2702,null,"Đồ ăn"]
[null,"Bảo hiểm",900,null,"Giải trí"]
[null,"Khoản vay",200,null,"Khoản vay"]
[null,"Chăm sóc cá nhân",140,null,"Nhà ở"]
[null,"Vật nuôi",100,null,"Quà tặng và khoản từ thiện"]
[null,"Tiết kiệm hoặc đầu tư",200,null,"Tiết kiệm hoặc đầu tư"]
[null,"Thuế",300,null,"Thuế"]
[null,"Đi lại",1375,null,"Vật nuôi"]
[null,"Tổng Cuối",7860]